bitfinex/quotes_ETHUSD_20250923
["timestamp","ask_amount","ask_price","bid_price","bid_amount"]
[1758638014769,3.0,4192.9,4192.7,0.6998]
[1758638015105,3.0,4192.9,4192.3,0.2307]
[1758638015317,2.50494559,4193.1,4192.1,0.02]
[1758638015318,4.072,4192.8,4192.1,0.02]
[1758638015472,0.80363304,4193.1,4192.1,0.02]
[1758638015473,9.45710396,4192.7,4192.2,14.5]
[1758638015807,2.62277935,4193.0,4192.2,14.5]
[1758638015808,4.072,4192.6,4192.2,14.5]
[1758638016014,4.073,4192.5,4192.3,0.6998]
[1758638016209,4.073,4192.5,4192.4,0.2307]
[1758638016717,4.073,4192.5,4192.4,0.6998]
[1758638017306,4.072,4192.6,4192.4,0.6998]
[1758638017506,4.072,4192.6,4192.5,0.6998]
[1758638017878,4.072,4192.6,4192.5,17.58501168]
[1758638018311,4.072,4192.6,4192.5,15.1998]
[1758638018809,0.24087828,4193.1,4192.5,14.5]
[1758638018810,3.0,4192.7,4192.5,14.5]
[1758638019015,7.071,4192.7,4192.5,14.5]
[1758638020209,2.38515479,4192.6,4192.1,0.2507]
[1758638020511,2.3852893,4192.4,4192.1,0.02]
[1758638020727,3.0,4192.3,4192.1,14.52]
[1758638022527,2.38538237,4192.2,4192.1,0.02]
[1758638022833,11.3223469,4192.2,4192.1,0.02]
[1758638023003,11.83113249,4192.2,4192.1,0.02]
[1758638024913,11.58373249,4192.2,4192.1,0.024]
[1758638025117,11.11053249,4192.2,4192.1,0.024]
[1758638025719,8.72515012,4192.2,4192.1,0.024]
[1758638025888,11.11053249,4192.2,4192.1,0.024]
[1758638026303,11.74555429,4192.2,4192.1,0.024]
[1758638026516,11.52469902,4192.2,4192.1,0.024]
[1758638026806,11.52525759,4192.2,4192.1,0.024]
[1758638027003,11.61183579,4192.2,4192.1,0.024]
[1758638027221,11.83361144,4192.2,4192.1,0.024]
[1758638027432,11.70062463,4192.2,4192.1,0.024]
[1758638027602,11.47876796,4192.2,4192.1,0.024]
[1758638028242,12.68436704,4192.2,4192.1,0.024]
[1758638028850,12.684507,4192.2,4192.1,0.024]
[1758638029009,11.83386409,4192.2,4192.1,0.024]
[1758638029334,13.10956964,4192.2,4192.1,0.024]
[1758638029521,13.10964695,4192.2,4192.1,0.024]
[1758638030403,11.8339414,4192.2,4192.1,0.024]
[1758638031344,5.50463927,4192.1,4192.0,0.004]
[1758638031510,6.8427983,4192.1,4192.0,0.004]
[1758638031705,7.0901983,4192.1,4192.0,0.004]
[1758638031905,7.8821983,4192.1,4192.0,0.004]
[1758638032953,0.792,4192.0,4191.6,0.004]
[1758638033135,6.17761,4191.8,4191.6,0.004]
[1758638033311,11.10379256,4191.7,4191.6,0.004]
[1758638033648,11.82459256,4191.7,4191.6,0.004]
[1758638037049,13.52141276,4191.7,4191.6,0.004]
[1758638037552,11.82459256,4191.7,4191.6,0.004]
[1758638037908,11.10299256,4191.7,4191.6,0.004]
[1758638038650,11.82459256,4191.7,4191.6,0.004]
[1758638039015,11.35039256,4191.7,4191.6,0.004]
[1758638039207,13.52141276,4191.7,4191.6,0.004]
[1758638039411,11.82459256,4191.7,4191.6,0.004]
[1758638040613,11.69214004,4191.7,4191.6,0.004]
[1758638041943,6.90854004,4191.7,4191.6,0.004]
[1758638042144,13.02854004,4191.7,4191.6,0.004]
[1758638042555,6.90854004,4191.7,4191.6,0.004]
[1758638042761,12.23654004,4191.7,4191.6,0.6928]
[1758638043278,6.90854004,4191.7,4191.6,0.6928]
[1758638043488,10.96554004,4191.7,4191.6,0.2516]
[1758638044082,8.57987313,4191.7,4191.6,0.6928]
[1758638044383,8.57887313,4191.7,4191.6,0.6928]
[1758638044591,10.96454004,4191.7,4191.6,0.6928]
[1758638044746,10.96454004,4191.7,4191.6,0.2516]
[1758638044946,12.24029423,4191.7,4191.6,0.004]
[1758638045143,11.68514004,4191.7,4191.6,0.004]
[1758638045373,6.17789459,4191.3,4191.2,0.004]
[1758638045568,11.09778069,4191.3,4191.2,0.004]
[1758638046374,5.50515151,4191.2,4191.1,0.024]
[1758638046577,7.45563917,4191.3,4191.2,0.6888]
[1758638046786,12.37855533,4191.3,4191.2,0.6888]
[1758638046950,11.10081075,4191.3,4191.2,0.6888]
[1758638047146,8.77496199,4191.3,4191.2,0.6888]
[1758638047382,4.92291616,4191.3,4191.2,0.6888]
[1758638047555,0.86591616,4191.3,4191.2,0.6888]
[1758638047745,3.86591616,4191.3,4191.2,0.6888]
[1758638047949,6.25181075,4191.3,4191.1,0.024]
[1758638048150,2.064,4192.0,4191.1,0.024]
[1758638048151,8.77496199,4191.2,4191.1,0.024]
[1758638048350,7.92491616,4191.2,4191.1,0.024]
[1758638048887,7.92491616,4191.2,4191.1,0.7128]
[1758638049085,11.10286767,4191.2,4191.1,0.024]
[1758638049383,3.1192,4191.1,4190.8,0.17669552]
[1758638049586,3.63980322,4190.9,4190.7,0.004]
[1758638049752,0.86611758,4190.8,4190.7,0.004]
[1758638051389,0.86611758,4190.8,4190.7,0.7037]
[1758638051753,3.86611758,4190.8,4190.7,0.7037]
[1758638051954,6.25229682,4190.8,4190.7,0.004]
[1758638052191,6.89210004,4190.8,4190.7,0.004]
[1758638052386,6.89217897,4190.8,4190.7,0.004]
[1758638052685,4.50599973,4190.8,4190.7,0.004]
[1758638052886,4.50599973,4190.8,4190.7,0.2504]
[1758638053265,3.86619651,4190.8,4190.7,0.2504]
[1758638053576,0.86619651,4190.8,4190.7,0.7037]
[1758638054156,0.86619651,4190.8,4190.7,3.08993618]
[1758638055266,0.35509558,4190.8,4190.7,0.7037]
[1758638055982,0.35591506,4190.8,4190.7,0.7037]
[1758638056182,0.86831484,4190.8,4190.7,0.7037]
[1758638056386,0.35591506,4190.8,4190.7,0.7037]
[1758638057195,0.35591506,4190.8,4190.7,15.2037]
[1758638058163,0.35591506,4190.8,4190.7,14.504]
[1758638058164,2.7420943,4190.8,4190.7,14.504]
[1758638058474,6.25403952,4190.8,4190.7,0.004]
[1758638058693,6.49203952,4190.8,4190.7,0.004]
[1758638059899,8.36734274,4190.8,4190.7,0.004]
[1758638060065,8.23467472,4190.8,4190.7,0.004]
[1758638060271,7.5948715,4190.8,4190.7,0.004]
[1758638062404,7.59506741,4190.8,4190.7,0.004]
[1758638062874,6.17823618,4190.7,4190.6,0.004]
[1758638063063,10.96962435,4190.7,4190.6,0.004]
[1758638063266,12.93249172,4190.7,4190.6,0.004]
[1758638065307,3.17852092,4190.2,4190.1,1e-08]
[1758638065479,35.86170417,4190.2,4190.1,1e-08]
[1758638065806,36.54320417,4190.2,4190.1,1e-08]
[1758638066583,37.82243083,4190.2,4190.1,1e-08]
[1758638066920,36.54320417,4190.2,4190.1,1e-08]
[1758638067117,37.82267871,4190.2,4190.1,1e-08]
[1758638068091,37.82203919,4190.2,4190.1,1e-08]
[1758638068422,36.54256465,4190.2,4190.1,1e-08]
[1758638070486,36.67569527,4190.2,4190.1,1e-08]
[1758638071087,36.67569527,4190.2,4189.8,0.004]
[1758638071088,3.1786918,4189.9,4189.8,0.004]
[1758638071289,14.01940819,4189.9,4189.8,0.004]
[1758638071619,14.70090819,4189.9,4189.8,0.004]
[1758638071930,13.16337976,4189.9,4188.1,0.02]
[1758638072090,0.792,4188.2,4188.1,0.02]
[1758638072287,12.65579462,4188.2,4188.1,0.02]
[1758638072534,13.16853984,4188.2,4188.1,0.02]
[1758638072691,13.16853984,4188.2,4188.1,0.7197]
[1758638072886,13.29153416,4188.2,4188.1,0.7197]
[1758638073430,13.29153416,4188.2,4188.1,0.02]
[1758638073591,13.29253416,4188.2,4188.1,0.02]
[1758638073932,13.29253416,4188.2,4188.1,0.2664]
[1758638074143,13.29253416,4188.2,4188.1,0.02]
[1758638074439,7.17053416,4188.2,4188.1,0.02]
[1758638074643,13.29453416,4188.2,4188.1,0.02]
[1758638075136,7.40853416,4188.2,4188.1,0.02]
[1758638075287,13.53353416,4188.2,4188.1,0.02]
[1758638075724,13.97703416,4188.2,4188.1,0.02]
[1758638075919,13.53353416,4188.2,4188.1,0.02]
[1758638076132,13.97585435,4188.2,4188.1,0.02]
[1758638076337,13.97585435,4188.2,4187.7,1e-08]
[1758638076338,3.17988862,4187.8,4187.7,1e-08]
[1758638076494,40.82668333,4187.8,4187.7,1e-08]
[1758638076693,3.18023079,4187.2,4186.7,0.2464]
[1758638076999,39.89109971,4187.2,4186.7,0.2464]
[1758638077557,39.89109971,4187.2,4183.1,0.02]
[1758638077558,0.792,4186.5,4183.1,0.02]
[1758638077832,6.18142916,4185.1,4184.1,1e-08]
[1758638078037,2.39022874,4183.7,4183.6,1e-08]
[1758638078193,1.14502845,4183.7,4183.6,1e-08]
[1758638078392,12.68125719,4183.7,4183.6,1e-08]
[1758638078604,13.3140906,4183.7,4183.6,1e-08]
[1758638078792,0.792,4183.5,4183.1,0.02]
[1758638079015,0.792,4183.1,4182.0,0.0164]
[1758638079201,3.0,4182.4,4182.0,0.0164]
[1758638079406,4.106,4182.3,4182.1,14.5]
[1758638079605,4.106,4182.3,4181.4,2.39154121]
[1758638079606,0.792,4182.0,4180.0,0.00352273]
[1758638079808,3.18434449,4180.0,4179.1,0.02]
[1758638080005,10.51606754,4180.0,4179.1,0.02]
[1758638080205,3.792,4180.0,4179.1,0.02]
[1758638080404,4.2453,4180.0,4179.2,0.4533]
[1758638080595,4.2453,4180.0,4179.6,0.4533]
[1758638080796,3.0,4180.0,4179.9,0.74159547]
[1758638080992,0.792,4180.5,4180.4,2.39207546]
[1758638081230,1.554,4181.2,4180.4,0.6867]
[1758638081417,0.792,4181.1,4180.5,0.6867]
[1758638081596,0.14947327,4181.7,4179.9,0.28829547]
[1758638081597,30.23384047,4181.0,4179.9,0.28829547]
[1758638081795,0.39107327,4181.7,4180.0,15.1867]
[1758638081796,3.0,4180.8,4180.0,15.1867]
[1758638082001,0.14947327,4181.7,4179.9,0.28829547]
[1758638082002,3.0,4180.6,4180.1,0.6867]
[1758638082299,0.14947327,4181.7,4180.2,0.6867]
[1758638082501,3.096,4181.6,4180.3,15.1867]
[1758638082726,3.792,4181.4,4180.5,2.39205154]
[1758638082927,0.14947327,4181.7,4181.4,2.39148747]
[1758638083126,0.14947327,4181.7,4181.5,2.63058199]
[1758638083326,0.0192,4181.9,4181.7,2.39137193]
[1758638083513,0.0192,4181.9,4181.8,14.5]
[1758638083717,0.0192,4181.9,4181.8,15.1867]
[1758638084063,3.0192,4181.9,4181.8,14.5]
[1758638084338,0.0192,4181.9,4181.8,16.7559]
[1758638084497,0.0192,4181.9,4181.8,15.3059]
[1758638085819,0.0192,4181.9,4181.8,17.69721474]
[1758638086376,0.0192,4181.9,4181.8,15.3059]
[1758638086547,0.0192,4181.9,4181.8,17.69721474]
[1758638087832,0.0192,4181.9,4181.8,14.5]
[1758638088351,0.1192,4181.8,4180.8,0.1192]
[1758638088516,0.1192,4181.7,4181.1,0.4453]
[1758638088710,3.0192,4181.9,4181.2,14.7414]
[1758638088909,3.0192,4181.9,4181.4,0.1192]
[1758638089244,0.1192,4181.3,4180.7,0.1192]
[1758638089541,4.4802,4181.3,4180.7,0.1192]
[1758638089744,0.792,4181.1,4180.8,14.5]
[1758638089925,0.792,4180.9,4180.8,14.5]
[1758638090470,7.37,4180.9,4180.8,14.5]
[1758638090679,0.21656994,4180.9,4180.8,17.57858672]
[1758638090833,4.369,4181.1,4180.8,15.1867]
[1758638091039,2.068,4181.6,4180.8,15.1867]
[1758638091040,4.369,4181.3,4180.9,0.6867]
[1758638091278,0.21664785,4181.2,4180.9,2.39177459]
[1758638091441,0.8112,4181.9,4181.0,0.6867]
[1758638091641,3.0,4181.7,4181.4,2.39152442]
[1758638091952,0.21668268,4181.6,4181.5,0.4453]
[1758638092137,0.21668268,4181.6,4181.5,2.8367863]
[1758638092335,0.21668268,4181.6,4181.5,3.0781863]
[1758638092683,0.2167787,4181.6,4180.8,14.7414]
[1758638092836,3.0,4181.4,4180.7,0.4453]
[1758638093039,0.0192,4181.9,4180.7,0.4453]
[1758638093040,4.5867787,4181.3,4180.7,0.4453]
[1758638093252,3.2167787,4181.2,4180.9,14.5]
[1758638093452,0.2167787,4181.1,4180.9,14.5]
[1758638093663,0.2167787,4181.0,4180.9,14.5]
[1758638094060,6.400551,4181.0,4180.9,14.5]
[1758638094234,6.642151,4181.0,4180.9,14.5]
[1758638094435,4.0087787,4181.0,4180.9,14.5]
[1758638094648,7.5857787,4181.0,4180.9,14.5]
[1758638094968,3.2167787,4181.0,4180.9,14.5]
[1758638095173,3.2167787,4181.0,4180.9,14.9453]
[1758638095375,3.2167787,4181.0,4180.9,14.5]
[1758638095936,7.5817787,4181.0,4180.9,14.5]
[1758638096474,3.2167787,4181.0,4180.9,15.1867]
[1758638096772,3.2167787,4181.0,4180.9,17.57852951]
[1758638096773,0.2167787,4181.0,4180.9,17.57852951]
[1758638096938,0.21726004,4181.0,4180.9,17.57852951]
[1758638097961,0.21726004,4181.0,4180.9,15.1867]
[1758638098160,0.21726004,4181.0,4180.9,17.57852951]
[1758638098793,0.21726004,4181.0,4180.9,17.33712951]
[1758638098989,0.21726004,4181.0,4180.9,17.57852951]
[1758638099394,0.21726004,4181.0,4180.9,14.5]
[1758638099692,0.21726004,4181.0,4180.9,17.33712951]
[1758638100079,0.21726004,4181.0,4180.9,14.9453]
[1758638100266,0.21726004,4181.0,4180.9,17.33712951]
[1758638100460,0.21726004,4181.0,4180.9,14.9453]
[1758638100989,0.21726004,4181.0,4180.9,16.89182951]
[1758638102362,0.2189075,4181.0,4180.9,14.5]
[1758638102562,7.8165075,4181.0,4180.9,14.5]
[1758638102867,6.30302951,4180.9,4180.8,0.004]
[1758638103060,7.78635194,4180.9,4180.8,0.004]
[1758638103280,0.97374849,4180.9,4180.8,0.004]
[1758638103601,0.72323929,4180.9,4180.8,0.004]
[1758638103918,8.38272567,4180.9,4180.8,0.004]
[1758638104195,8.60284842,4180.9,4180.8,0.004]
[1758638104495,8.60284842,4180.9,4180.0,0.004]
[1758638104496,3.18405836,4180.5,4180.0,0.004]
[1758638104696,4.64666845,4180.5,4180.0,0.004]
[1758638104894,7.03872681,4180.5,4180.0,0.004]
[1758638105096,4.88826845,4180.5,4180.0,14.504]
[1758638105400,4.88826845,4180.5,4180.0,0.004]
[1758638105401,12.10982681,4180.5,4180.0,0.004]
[1758638106257,3.18428726,4180.1,4180.0,0.004]
[1758638106461,13.46395571,4180.1,4180.0,0.004]
[1758638106668,14.18016485,4180.1,4180.0,0.004]
[1758638107397,6.18434449,4180.0,4179.9,0.28829547]
[1758638107583,9.16224969,4180.0,4179.9,0.28829547]
[1758638107896,9.87534969,4180.0,4179.9,0.28829547]
[1758638108400,9.87454969,4180.0,4179.9,0.28829547]
[1758638108563,11.07577759,4180.0,4179.9,0.28829547]
[1758638108758,4.64977759,4180.0,4179.9,0.28829547]
[1758638108971,5.55393268,4180.0,4179.9,0.28829547]
[1758638109322,0.85777759,4180.0,4179.9,0.28829547]
[1758638109459,2.13010315,4180.0,4179.9,0.97499547]
[1758638109662,0.85777759,4180.0,4179.9,0.28829547]
[1758638109984,2.13010272,4180.0,4179.9,17.8673972]
[1758638110196,2.13010272,4180.0,4179.9,19.89578097]
[1758638110397,0.85777759,4180.0,4179.9,19.89578097]
[1758638110803,0.85777759,4180.0,4179.9,14.78829547]
[1758638110985,6.49388092,4180.0,4179.9,14.78829547]
[1758638111185,6.01288457,4180.0,4179.9,14.78829547]
[1758638111402,11.64932906,4180.0,4179.9,0.28829547]
[1758638111578,9.01288457,4180.0,4179.9,0.28829547]
[1758638111775,11.40522906,4180.0,4179.9,0.28829547]
[1758638111978,13.76788415,4180.0,4179.9,0.28829547]
[1758638112173,12.07172906,4180.0,4179.9,0.28829547]
[1758638112426,6.18463069,4179.5,4179.4,14.5]
[1758638112741,6.18463069,4179.5,4178.3,0.455]
[1758638112742,6.18480245,4179.2,4178.3,0.455]
[1758638112907,9.01388457,4179.2,4178.3,0.455]
[1758638113096,11.63898702,4179.2,4179.1,14.52]
[1758638113434,12.07318702,4179.2,4179.1,0.02]
[1758638113727,12.07318702,4179.2,4178.1,0.02]
[1758638113728,3.18537513,4178.2,4178.1,0.02]
[1758638113935,10.2841192,4178.2,4178.1,0.02]
[1758638114096,5.1311192,4178.2,4178.1,0.475]
[1758638114441,8.21888457,4178.2,4178.1,0.02]
[1758638114743,8.21888457,4178.2,4178.1,14.52]
[1758638114951,8.21888457,4178.2,4178.1,16.6677]
[1758638114952,1.35465472,4178.2,4178.1,16.6677]
[1758638115101,0.86050693,4178.2,4178.1,19.18033242]
[1758638115296,0.86050693,4178.2,4178.1,19.06113242]
[1758638115730,1.4959754,4178.2,4178.1,19.06113242]
[1758638115906,0.86050693,4178.2,4178.1,19.06113242]
[1758638116537,1.4959754,4178.2,4178.1,19.06113242]
[1758638117628,1.4959754,4178.2,4178.1,4.56113242]
[1758638118108,0.72810718,4178.2,4178.1,19.06113242]
[1758638118822,0.72810718,4178.2,4178.1,18.60613242]
[1758638119128,0.86055657,4178.2,4178.1,19.06113242]
[1758638119328,0.86055657,4178.2,4178.1,14.52]
[1758638119891,1.70777036,4178.2,4178.1,14.52]
[1758638120091,0.86055657,4178.2,4178.1,17.60913242]
[1758638120521,1.496168,4178.2,4178.1,17.60913242]
[1758638120759,0.63989032,4178.2,4178.1,17.60913242]
[1758638120921,0.63989032,4178.2,4178.1,16.91343242]
[1758638121118,0.63989032,4178.2,4178.1,14.52]
[1758638121370,1.48710411,4178.2,4178.1,14.52]
[1758638121524,1.91101072,4178.2,4178.1,14.52]
[1758638123265,0.63989032,4178.2,4178.1,17.36843242]
[1758638123559,1.48745692,4178.2,4178.1,19.5853303]
[1758638123723,1.48745692,4178.2,4178.1,15.2157]
[1758638124076,1.91101072,4178.2,4178.1,14.52]
[1758638124362,7.49176545,4178.2,4178.1,0.02]
[1758638124518,7.49176545,4178.2,4177.1,0.02]
[1758638124519,2.39344597,4178.1,4177.1,0.02]
[1758638124719,0.63553416,4177.2,4177.1,2.41400541]
[1758638124976,0.63553416,4177.2,4177.1,14.52]
[1758638124977,1.27542448,4177.2,4177.1,14.52]
[1758638125177,0.63989032,4177.2,4177.1,14.52]
[1758638125483,5.11109032,4177.2,4177.1,14.52]
[1758638126132,5.77759032,4177.2,4177.1,14.52]
[1758638126322,5.34339032,4177.2,4177.1,14.52]
[1758638126521,7.41039032,4177.2,4177.1,14.52]
[1758638126760,5.33939032,4177.2,4177.1,14.52]
[1758638126932,4.98689032,4177.2,4177.1,15.25586508]
[1758638127255,4.98689032,4177.2,4177.1,14.52]
[1758638127431,0.63989032,4177.2,4177.1,14.52]
[1758638127630,4.99389032,4177.2,4177.1,16.91400541]
[1758638127854,0.63981423,4177.2,4177.1,17.60970541]
[1758638128845,0.63549696,4177.5,4177.4,2.39383348]
[1758638129068,0.63549696,4178.1,4178.0,2.3934897]
[1758638129260,0.63549696,4178.2,4178.1,2.39343242]
[1758638129558,0.63549696,4178.3,4178.2,2.39337513]
[1758638129851,0.63549696,4178.4,4178.3,2.63401785]
[1758638130247,2.62501192,4179.4,4178.3,2.63401785]
[1758638130248,0.63549696,4178.6,4178.5,2.3932033]
[1758638130451,0.84725228,4178.9,4178.5,2.3932033]
[1758638130452,0.63549696,4178.8,4178.7,2.39308875]
[1758638130682,0.84725228,4179.1,4179.0,2.39291696]
[1758638130981,0.63663909,4179.2,4179.0,3.08861696]
[1758638131166,4.98463909,4179.4,4179.3,2.39274519]
[1758638131371,4.348,4179.4,4179.3,14.5]
[1758638131556,5.0145,4179.4,4179.3,14.5]
[1758638131756,5.42755228,4179.4,4179.3,14.5]
[1758638132089,0.84725228,4179.5,4179.3,14.5]
[1758638132262,4.346,4179.4,4179.3,14.5]
[1758638132662,4.343,4179.4,4179.3,14.5]
[1758638132860,0.84725228,4179.5,4179.4,2.39268794]
[1758638133063,4.343,4179.5,4179.4,2.41661481]
[1758638133359,4.97963278,4179.5,4179.3,14.5]
[1758638133562,3.03112072,4179.4,4179.3,14.5]
[1758638133757,5.2284835,4179.4,4178.2,0.455]
[1758638133985,0.63884796,4179.0,4178.6,2.39311561]
[1758638134151,4.347,4178.9,4178.7,16.91699537]
[1758638134354,2.7365,4179.4,4178.7,16.91699537]
[1758638134355,0.63884796,4179.1,4178.7,14.5]
[1758638134551,0.63884796,4179.1,4178.8,2.39303149]
[1758638134882,0.63884796,4179.1,4178.7,18.58238255]
[1758638134883,4.98484796,4179.1,4178.7,18.58238255]
[1758638135052,4.98484796,4179.1,4179.0,2.39291696]
[1758638135282,4.346,4179.1,4179.0,2.39291696]
[1758638135485,4.346,4179.1,4175.1,0.02]
[1758638135486,1.06246099,4178.6,4175.1,0.02]
[1758638135754,0.86305586,4179.0,4173.2,0.29199156]
[1758638135755,5.39515221,4175.1,4173.2,0.29199156]
[1758638135887,1.48816806,4174.0,4173.2,14.79199156]
[1758638136086,2.39601303,4173.6,4173.3,1.48119916]
[1758638136385,0.63834666,4173.7,4173.3,1.48119916]
[1758638136386,0.84791161,4173.4,4173.3,1.48119916]
[1758638136627,4.64081362,4173.4,4173.2,0.29199156]
[1758638136782,5.05502687,4173.4,4173.2,0.29199156]
[1758638136981,0.84791161,4173.7,4173.2,0.29199156]
[1758638136982,0.63602687,4173.6,4173.3,14.5]
[1758638137192,0.84791161,4173.8,4173.2,0.29199156]
[1758638137193,0.6361488,4173.8,4173.4,5.13766127]
[1758638137395,0.84791161,4175.7,4173.5,0.7196607]
[1758638137614,1.27106832,4176.0,4173.5,0.7196607]
[1758638137615,0.84791161,4175.9,4175.5,14.5]
[1758638137845,0.84791161,4176.2,4175.6,4.514]
[1758638137983,0.96411017,4178.2,4175.9,2.39469335]
[1758638137984,0.84791161,4177.7,4175.9,2.39469335]
[1758638138187,0.025,4176.4,4176.3,2.39446399]
[1758638138506,0.645092,4176.9,4176.8,2.39417736]
[1758638138705,0.645092,4176.9,4176.8,0.71964177]
[1758638139069,0.645092,4176.9,4176.8,4.55]
[1758638139329,0.645092,4176.9,4176.8,19.07394177]
[1758638139633,0.86592354,4176.9,4176.8,14.5]
[1758638139810,0.645092,4176.9,4176.8,15.1957]
[1758638140121,0.645092,4176.9,4175.7,0.455]
[1758638140292,3.88727649,4176.8,4174.2,0.455]
[1758638140499,0.84791161,4175.7,4174.3,0.2407]
[1758638140818,1.27106832,4176.0,4174.3,0.2407]
[1758638140819,0.50837911,4175.6,4175.2,14.5]
[1758638141042,0.50837911,4175.5,4175.1,4.581]
[1758638141315,0.50837911,4175.4,4174.8,4.581]
[1758638141482,0.50837911,4175.3,4174.8,4.581]
[1758638141682,0.50837911,4175.2,4174.9,0.02395266]
[1758638141879,0.84791161,4176.1,4175.3,2.39501243]
[1758638142121,0.02,4176.9,4175.4,5.2771498]
[1758638142327,0.50821518,4176.8,4175.5,2.7412]
[1758638142486,0.50821518,4176.7,4175.7,2.39480805]
[1758638142852,0.02,4176.9,4175.8,5.2562]
[1758638143013,0.50827061,4176.8,4175.9,6.67994693]
[1758638143187,0.50827061,4176.7,4176.5,2.39429498]
[1758638143382,0.02,4176.9,4176.6,0.02394292]
[1758638143620,0.02,4176.9,4176.4,4.584]
[1758638143621,0.50821466,4176.8,4176.4,4.584]
[1758638143921,0.50821466,4176.8,4175.3,2.39501423]
[1758638143922,25.04982533,4176.5,4172.1,0.02]
[1758638144083,0.84693569,4175.9,4173.1,0.4637]
[1758638144281,0.84693569,4174.6,4173.8,2.39588717]
[1758638144484,0.50821466,4174.5,4174.2,0.02395668]
[1758638144680,0.50821466,4174.4,4174.2,0.02395668]
[1758638144880,0.50821466,4174.3,4174.2,0.02395668]
[1758638145126,0.50821466,4174.3,4173.5,2.39603279]
[1758638145283,3.84693569,4174.6,4174.2,0.02395668]
[1758638145485,0.50703275,4174.5,4174.2,0.02395668]
[1758638145723,0.50703275,4174.4,4174.2,0.02395668]
[1758638145884,0.84693569,4174.7,4174.2,0.69415668]
[1758638145885,0.50703275,4174.3,4174.2,0.69415668]
[1758638146086,0.50703275,4174.3,4174.2,3.06586863]
[1758638146284,0.50703275,4174.3,4173.8,2.3958641]
[1758638146516,0.50703275,4174.2,4174.1,2.41571564]
[1758638146752,0.50703275,4174.2,4174.1,2.41572602]
[1758638147106,3.84693569,4175.1,4174.6,2.39541365]
[1758638147331,0.50662651,4175.0,4174.7,0.02395381]
[1758638147542,0.50662651,4174.9,4174.2,0.02395668]
[1758638147746,0.50662651,4174.8,4174.1,0.6902]
[1758638147951,5.071,4175.4,4174.8,0.1192]
[1758638148106,0.50638607,4175.3,4174.8,0.1192]
[1758638148301,0.50638607,4175.2,4174.2,0.2265]
[1758638148509,0.50638607,4175.1,4175.0,2.39520958]
[1758638149024,0.50638607,4175.1,4175.0,0.1192]
[1758638150423,0.50638607,4175.1,4175.0,17.01440958]
[1758638150606,0.84693569,4175.9,4175.8,2.3947507]
[1758638150809,2.071,4176.5,4175.8,0.1431475]
[1758638151059,0.84693569,4176.8,4176.3,2.39440912]
[1758638151267,0.84693569,4176.8,4176.3,2.394459]
[1758638151411,0.2318,4176.7,4176.4,14.6192]
[1758638151610,0.87087934,4176.8,4176.4,14.6192]
[1758638151922,0.02,4176.9,4176.6,0.1192]
[1758638153057,0.02,4176.9,4176.4,14.5]
[1758638153058,0.02,4176.9,4176.8,2.39417736]
[1758638153206,0.02,4176.9,4176.8,0.1192]
[1758638153714,0.02,4176.9,4176.8,14.6192]
[1758638154677,0.02,4176.9,4176.8,17.01337736]
[1758638156878,0.02,4176.9,4176.8,14.6192]
[1758638157541,0.02,4176.9,4176.8,17.01337736]
[1758638157975,0.02,4176.9,4176.8,17.68357736]
[1758638158194,0.001,4177.0,4176.9,2.39412004]
[1758638158401,0.0002,4177.0,4176.9,3.08826124]
[1758638158542,0.0002,4177.0,4176.9,3.06432004]
[1758638159043,0.0002,4177.0,4176.9,17.56432004]
[1758638159462,0.0002,4177.0,4176.9,19.63532004]
[1758638160751,0.0002,4177.0,4176.9,19.63532004]
[1758638162478,0.0002,4177.0,4176.9,20.42732004]
[1758638162991,0.50662893,4178.7,4176.9,18.0332]
[1758638163193,0.02,4178.9,4177.2,0.792]
[1758638163383,0.02,4178.9,4177.5,0.792]
[1758638163384,1e-08,4178.9,4177.5,0.792]
[1758638163583,1e-08,4178.9,4178.8,14.5]
[1758638163768,1e-08,4178.9,4178.8,21.43903149]
[1758638163967,1e-08,4178.9,4178.8,22.10923149]
[1758638164183,1e-08,4178.9,4178.8,21.66553149]
[1758638165065,1e-08,4178.9,4178.8,22.10923149]
[1758638166860,1e-08,4178.9,4178.8,16.89303149]
[1758638167720,0.23180001,4178.9,4178.8,16.89303149]
[1758638167886,0.69580001,4178.9,4178.8,16.89303149]
[1758638168220,2.516,4178.5,4173.5,0.4437]
[1758638168382,2.516,4178.5,4173.0,2.071]
[1758638168383,0.84416287,4176.2,4174.4,4.529]
[1758638168578,0.53081881,4176.1,4174.8,0.2265]
[1758638168784,1.07596287,4176.8,4175.2,0.02395094]
[1758638168969,3.0,4176.6,4175.2,0.02395094]
[1758638169175,0.2318,4176.8,4175.1,3.3205]
[1758638169176,0.50660338,4176.5,4175.1,3.3205]
[1758638169393,0.50660338,4176.4,4175.9,14.5]
[1758638169594,0.73840338,4176.3,4175.9,14.5]
[1758638169793,1.22634703,4176.2,4175.9,14.5]
[1758638170111,5.39463601,4176.0,4175.9,14.5]
[1758638170401,4.20240338,4176.0,4175.9,14.5]
[1758638170607,1.22634703,4176.0,4175.9,14.5]
[1758638170802,0.50660338,4176.0,4175.9,14.5]
[1758638171009,0.73840338,4176.0,4175.9,14.5]
[1758638171206,1.17370338,4176.0,4175.9,14.5]
[1758638171706,0.50660338,4176.0,4175.9,14.5]
[1758638172870,0.75440338,4176.0,4175.9,14.6192]
[1758638173476,1.20350338,4176.0,4175.9,14.6192]
[1758638173674,0.75440338,4176.0,4175.9,14.6192]
[1758638173870,0.50660338,4176.0,4175.9,14.6192]
[1758638174113,0.75440338,4176.0,4175.9,14.6192]
[1758638174407,0.75440338,4176.0,4175.1,0.02]
[1758638174408,3.62208304,4176.0,4175.1,0.02]
[1758638174572,2.92527575,4175.9,4175.4,0.1192]
[1758638174777,0.50660338,4175.8,4175.4,0.1192]
[1758638175015,2.39491628,4175.6,4175.5,14.5]
[1758638175179,3.59841966,4175.6,4175.5,14.5]